bitfinex-derivatives/quotes_ETHF0:USTF0_20260208
["timestamp","ask_amount","ask_price","bid_price","bid_amount"]
[1770517724487,0.55355895,2096.0,2094.7,0.42511565]
[1770517724676,0.55355895,2096.0,2094.7,0.66399565]
[1770517724882,0.55355895,2096.0,2094.8,0.42511565]
[1770517730392,0.55355895,2096.2,2094.9,0.44826479]
[1770517730595,0.55355895,2096.2,2095.0,0.44826479]
[1770517730984,0.55355895,2096.4,2095.5,0.23879]
[1770517731184,0.55355895,2096.4,2095.6,0.44826479]
[1770517731392,0.55355895,2096.4,2095.4,0.44826436]
[1770517731994,0.55355895,2096.4,2095.1,0.44826436]
[1770517732389,0.55355895,2096.3,2095.1,0.44826436]
[1770517733091,0.55355895,2096.2,2095.2,0.45942528]
[1770517734199,0.55355895,2096.2,2095.2,0.45847909]
[1770517735897,0.55355895,2096.2,2095.3,0.45847868]
[1770517739097,0.55355895,2096.1,2095.3,0.45847868]
[1770517740896,0.55355895,2096.3,2095.3,0.45847868]
[1770517742401,0.55355895,2096.2,2095.3,0.45847868]
[1770517746809,0.54374202,2096.4,2095.6,0.46000579]
[1770517747612,0.54374202,2096.6,2095.6,0.46000579]
[1770517748213,0.54374202,2096.6,2095.7,0.45929458]
[1770517748710,0.54374202,2096.6,2095.8,0.45929458]
[1770517748912,0.54374202,2096.6,2096.0,0.45929458]
[1770517749113,0.54374202,2096.6,2096.0,0.46331426]
[1770517757427,0.54374202,2096.6,2096.1,0.45918071]
[1770517760727,0.54374202,2096.6,2096.0,0.46189586]
[1770517767539,0.54374202,2096.6,2096.0,0.00401968]
[1770517770638,0.54374202,2096.6,2096.0,0.46560112]
[1770517777348,0.54374202,2096.6,2096.1,0.46265628]
[1770517778343,0.56077538,2096.5,2096.1,0.46265628]
[1770517778746,0.07398282,2096.5,2096.1,0.46265628]
[1770517779047,3.42247635,2096.6,2096.1,0.46265628]
[1770517779550,0.56077538,2096.5,2096.1,0.46265628]
[1770517779851,0.56077538,2096.5,2096.1,0.53285861]
[1770517780045,0.56077538,2096.5,2096.0,3.38247582]
[1770517780348,0.56077538,2096.5,2096.0,0.53687829]
[1770517780550,0.56077538,2096.5,2096.0,3.38247582]
[1770517780748,0.56077538,2096.5,2096.1,0.53285861]
[1770517786253,3.42247635,2096.6,2096.1,0.53285861]
[1770517786551,0.56077538,2096.5,2096.1,0.53285861]
[1770517787151,3.42247635,2096.6,2096.1,0.53285861]
[1770517788846,2.86170097,2096.6,2096.1,0.53285861]
[1770517789054,3.42247635,2096.6,2096.1,0.53285861]
[1770517789753,0.56077538,2096.5,2096.1,0.53285861]
[1770517792655,1.47165937,2096.5,2096.0,2.84961721]
[1770517792859,0.56077538,2096.2,2095.7,3.37845614]
[1770517793859,0.56077538,2096.2,2095.8,0.53285861]
[1770517794957,3.42247635,2096.4,2095.8,0.53285861]
[1770517795559,0.56077538,2096.3,2095.8,0.53285861]
[1770517795761,0.56077538,2096.2,2095.7,0.00371135]
[1770517798065,0.56077538,2096.2,2095.7,0.53656996]
[1770517799362,0.56077538,2096.3,2095.7,0.53656996]
[1770517799967,3.42247635,2096.4,2095.7,0.53656996]
[1770517800169,2.86170097,2096.4,2095.7,0.53656996]
[1770517800368,0.56077538,2096.7,2096.2,0.53285861]
[1770517801673,0.00565397,2096.8,2096.4,0.53285861]
[1770517801865,0.56077538,2097.0,2096.2,2.84559753]
[1770517802072,0.56077538,2097.0,2095.7,0.58387641]
[1770517802073,42.67599385,2096.5,2095.7,0.58387641]
[1770517802370,0.91088399,2096.4,2095.7,0.58387641]
[1770517802768,43.59027247,2096.4,2095.7,0.58387641]
[1770517803170,0.00339463,2096.4,2096.2,0.58185341]
[1770517803367,5.68557343,2096.9,2096.2,0.58185341]
[1770517803762,5.68557343,2097.0,2096.2,0.58185341]
[1770517803968,5.68557343,2097.2,2096.2,0.58185341]
[1770517804164,0.42416356,2097.2,2096.3,0.58185342]
[1770517804362,0.43020009,2097.2,2096.3,0.58185342]
[1770517806372,0.00603653,2097.2,2096.3,0.58185342]
[1770517807474,0.00603653,2097.2,2096.5,0.72545241]
[1770517808171,0.00603653,2097.2,2096.6,0.72545241]
[1770517809776,0.41273255,2098.0,2096.6,0.72545241]
[1770517809975,0.41273255,2098.0,2096.7,0.72545241]
[1770517810876,0.41626785,2098.0,2096.7,0.72545241]
[1770517812872,0.41626785,2098.0,2096.8,0.7188981]
[1770517813770,0.41626785,2098.0,2096.9,0.7188981]
[1770517813975,0.0035353,2098.0,2096.9,0.7188981]
[1770517814474,0.40616471,2098.0,2096.9,0.7188981]
[1770517814876,0.0035353,2098.0,2096.9,0.7188981]
[1770517815078,0.0035353,2098.0,2096.9,5.1952384]
[1770517815278,0.0035353,2098.0,2097.0,0.7188981]
[1770517815466,0.0035353,2098.0,2097.0,0.9575181]
[1770517815776,0.0035353,2098.0,2097.1,0.7188981]
[1770517816076,1.36617982,2098.7,2096.8,4.2377103]
[1770517816077,0.40067098,2098.7,2097.3,0.7188981]
[1770517816278,0.40067098,2098.7,2097.4,0.7188981]
[1770517817178,0.40506849,2098.7,2097.5,0.7188981]
[1770517817478,0.00439751,2098.7,2097.5,0.7188981]
[1770517818578,0.00439751,2098.7,2097.9,0.7188981]
[1770517818773,0.38429508,2099.6,2098.0,0.7188981]
[1770517819573,0.38429508,2099.6,2098.2,0.7188981]
[1770517819780,0.38783,2099.6,2098.2,0.7188981]
[1770517821772,0.38783,2099.6,2098.3,0.7188981]
[1770517821978,0.38783,2099.6,2098.4,0.7188981]
[1770517840087,0.38783,2099.6,2098.5,0.70599112]
[1770517840591,0.38783,2099.6,2098.6,0.70599112]
[1770517847391,0.22839745,2099.5,2098.7,0.70599112]
[1770517850789,0.22839745,2099.5,2098.6,9.93330648]
[1770517850790,0.21391589,2099.3,2098.6,0.70599112]
[1770517853198,0.19625142,2099.1,2098.6,0.70599112]
[1770517853398,0.19596137,2099.0,2098.3,0.70599112]
[1770517858494,42.4964745,2099.2,2098.3,0.70599112]
[1770517858698,0.17449084,2099.1,2098.3,0.70599112]
[1770517860298,0.16774425,2099.4,2098.5,0.70599112]
[1770517862101,0.16774425,2099.4,2098.6,0.70599112]
[1770517863107,0.16774425,2099.4,2098.7,0.70599112]
[1770517869414,0.12422288,2099.3,2098.7,0.70599112]
[1770517872115,42.32198366,2099.4,2098.7,0.70599112]
[1770517872317,42.43212993,2099.4,2098.7,0.70599112]
[1770517872517,0.11014627,2099.3,2098.7,0.70599112]
[1770517874412,0.10357024,2099.2,2098.5,0.6049181]
[1770517874621,0.10357024,2099.1,2098.5,0.6049181]
[1770517878320,0.61405017,2099.0,2098.3,0.6049181]
[1770517879117,0.61405017,2098.9,2098.3,0.6049181]
[1770517881121,42.32198366,2099.0,2098.3,0.6049181]
[1770517881620,42.93603383,2099.0,2098.3,0.6049181]
[1770517883420,0.61405017,2099.0,2098.3,0.6049181]
[1770517888938,42.93603383,2099.0,2098.1,0.6049181]
[1770517889144,0.61405017,2098.9,2098.1,0.6049181]
[1770517891242,42.93603383,2099.0,2098.1,0.6049181]
[1770517891437,0.61405017,2098.9,2098.1,0.6049181]
[1770517895448,0.61405017,2098.8,2098.1,0.6049181]
[1770517899752,0.61405017,2098.8,2098.2,0.59215992]
[1770517903050,42.32198366,2099.0,2098.2,1.50126031]
[1770517903253,0.58147951,2099.5,2098.8,0.59215992]
[1770517905652,0.58501443,2099.6,2098.8,0.59215992]
[1770517906253,0.58147951,2099.5,2098.8,0.59215992]
[1770517907951,0.90910039,2099.4,2098.8,0.59215992]
[1770517908261,0.58147951,2098.9,2098.3,0.59215992]
[1770517910560,0.58147951,2099.0,2098.3,0.59215992]
[1770517912063,0.58147951,2098.8,2098.3,0.59215992]
[1770517913362,0.58147951,2098.8,2098.2,0.59215992]
[1770517913570,0.58147951,2098.8,2098.0,2.83892368]
[1770517913571,0.58147951,2098.6,2098.0,0.59215992]
[1770517913860,0.58147951,2098.4,2098.0,0.59215992]
[1770517920462,0.58147951,2098.3,2098.0,0.59215992]
[1770517920864,0.58147951,2098.3,2097.7,2.83892368]
[1770517921063,1.4905799,2098.0,2097.7,0.51415486]
[1770517921259,0.58147951,2098.4,2097.7,0.4242606]
[1770517921665,0.58147951,2098.2,2097.7,0.4242606]
[1770517922064,0.90910039,2097.9,2097.5,0.4203261]
[1770517922267,0.58147951,2097.8,2097.5,0.4203261]
[1770517922966,0.58147951,2097.8,2097.4,0.1239612]
[1770517923957,0.00541011,2097.9,2097.4,0.1239612]
[1770517924869,0.58147951,2098.2,2097.4,0.1239612]
[1770517925270,0.58147951,2098.0,2097.4,0.1239612]
[1770517925675,0.61680194,2098.6,2097.5,0.62905939]
[1770517925972,0.62059605,2098.6,2097.5,0.62905939]
[1770517927669,0.62059605,2098.6,2097.6,0.62905939]
[1770517932472,0.60672556,2098.5,2097.5,0.60353839]
[1770517936376,0.5641653,2098.4,2097.5,0.60353839]
[1770517939881,0.5641653,2098.3,2097.5,0.60353839]
[1770517941280,0.5641653,2098.2,2097.4,0.57893707]
[1770517942990,0.5641653,2098.2,2097.4,0.00490435]
[1770517943383,0.5641653,2098.1,2097.4,0.00490435]
[1770517945289,0.5641653,2097.9,2097.1,0.57403272]
[1770517945482,0.5641653,2097.5,2097.1,0.57403272]
[1770517946177,0.5641653,2097.5,2097.1,0.57934665]
[1770517946788,0.5641653,2097.7,2097.1,0.57934665]
[1770517947287,0.5641653,2097.9,2097.2,0.57403272]
[1770517949883,0.5641653,2097.7,2097.1,0.57934665]
[1770517950186,0.5641653,2097.1,2096.6,0.57403272]
[1770517951088,0.56861109,2097.1,2096.6,0.57799026]
[1770517951384,0.5641653,2096.9,2096.6,0.00395754]
[1770517952784,0.5641653,2096.9,2096.6,0.57799026]
[1770517954088,0.5641653,2096.9,2096.6,0.00395754]
[1770517954688,0.5641653,2096.9,2096.3,0.57403272]
[1770517954889,0.5641653,2096.7,2096.3,0.57403272]
[1770517955289,0.5641653,2096.7,2096.0,0.57403272]
[1770517955788,0.5641653,2096.7,2096.0,0.57807742]
[1770517956491,0.55746229,2096.6,2096.0,0.57807742]
[1770517956681,0.55746229,2096.5,2096.0,0.88636547]
[1770517958690,0.55746229,2096.5,2096.0,0.0040447]
[1770517958890,0.55746229,2096.8,2096.1,0.55577563]
[1770517959589,0.55746229,2097.0,2096.1,0.55577563]
[1770517960196,0.00444579,2097.1,2096.1,0.55577563]
[1770517962395,0.00444579,2097.1,2096.2,0.55577563]
[1770517962892,0.56190808,2097.1,2096.2,0.55577563]
[1770517963197,0.00444579,2097.1,2096.2,0.55577563]
[1770517963498,0.00444579,2097.1,2096.2,3.39469931]
[1770517963698,0.56190808,2097.1,2096.3,0.55577563]
[1770517964292,0.00444579,2097.1,2096.3,0.55577563]
[1770517964494,0.56190808,2097.1,2096.3,0.55577563]
[1770517964691,0.00444579,2097.1,2096.3,0.55577563]
[1770517966796,0.56190808,2097.1,2096.3,0.55577563]
[1770517969903,0.56190808,2097.1,2096.0,0.31346098]
[1770517970100,0.56190808,2097.1,2096.0,0.86923661]
[1770517971207,43.13918863,2097.1,2096.0,0.55982033]
[1770517971396,0.55746229,2097.0,2096.0,0.55982033]
[1770517971702,0.55746229,2096.8,2096.0,0.0040447]
[1770517972004,0.55746229,2096.7,2096.0,0.0040447]
[1770517972399,0.55746229,2096.7,2095.6,0.55577563]
[1770517973512,0.55746229,2096.7,2095.6,0.5591958]
[1770517973909,0.55746229,2096.3,2095.6,0.00342017]
[1770517974215,0.55746229,2096.3,2095.6,0.5591958]
[1770517975215,0.55746229,2096.3,2095.3,0.55577563]
[1770517976307,0.55746229,2096.3,2095.3,0.55995979]
[1770517978010,0.55746229,2096.4,2095.3,0.55995979]
[1770517978513,0.55746229,2096.7,2095.4,0.55577563]
[1770517979813,0.55746229,2096.7,2095.6,0.55577563]
[1770517980213,0.55746229,2096.9,2095.7,0.55577563]
[1770517980511,0.55746229,2096.9,2095.9,0.55577563]
[1770517981106,0.56190808,2097.1,2095.9,0.55577563]
[1770517983115,0.56190808,2097.1,2096.0,0.55577563]
[1770517990225,0.56190808,2097.1,2096.1,0.55032521]
[1770517991021,0.56190808,2097.1,2095.6,7.0646246]
[1770517991022,0.55061744,2097.0,2095.7,0.55032521]
[1770517991228,0.55061744,2096.9,2095.7,0.55032521]
[1770517994028,0.53969905,2096.8,2095.7,0.55032521]
[1770517994436,0.53969905,2096.8,2095.6,0.56299932]
[1770517995324,0.53969905,2096.7,2095.6,0.56299932]
[1770518001631,0.53969905,2096.6,2095.6,0.56299932]
[1770518002132,0.53969905,2096.4,2095.4,0.56299932]
[1770518006342,0.53969905,2096.3,2095.4,0.56299932]
[1770518007144,0.53969905,2096.2,2095.3,0.56718348]
[1770518010045,43.1169796,2096.2,2095.3,0.00418416]
[1770518010243,0.53969905,2096.1,2095.3,0.00418416]
[1770518011744,0.53969905,2095.9,2095.3,0.00418416]
[1770518014255,43.1169796,2095.7,2094.8,0.56299932]
[1770518014452,0.53969905,2095.6,2094.8,0.56299932]
[1770518015450,0.5442096,2095.6,2094.8,0.5668987]
[1770518020851,0.5442096,2095.6,2094.8,0.00389938]
[1770518021051,43.12149015,2095.6,2094.8,0.00389938]
[1770518021249,0.55980502,2095.5,2094.8,0.55928483]
[1770518024058,0.55980502,2095.5,2094.8,0.00389938]
[1770518024659,0.55980502,2095.5,2094.8,0.55928483]
[1770518027463,0.55980502,2095.5,2094.8,0.00389938]
[1770518028459,0.55980502,2095.5,2094.4,0.55538545]
[1770518029162,0.55980502,2095.5,2094.5,0.55538545]
[1770518029369,0.55980502,2095.5,2094.5,0.55889735]
[1770518030260,0.55980502,2095.4,2094.5,0.55889735]
[1770518031167,0.55980502,2095.4,2094.5,0.0035119]
[1770518031168,43.13708557,2095.4,2094.5,0.0035119]
[1770518031363,43.13708557,2095.3,2094.5,0.0035119]
[1770518031565,0.55980502,2095.2,2094.5,0.0035119]
[1770518032059,0.55980502,2095.1,2094.2,0.55538545]
[1770518032262,0.55980502,2095.1,2094.2,0.85771851]
[1770518032568,0.55980502,2095.1,2094.2,0.55538545]
[1770518032968,0.55980502,2095.1,2094.2,0.56038513]
[1770518033770,0.55980502,2095.0,2094.2,0.00499968]
[1770518034167,0.55980502,2094.9,2094.2,0.00499968]
[1770518034770,0.55980502,2094.9,2094.2,0.56038513]
[1770518035066,0.55980502,2094.9,2094.2,0.00499968]
[1770518035261,0.55980502,2094.7,2093.8,0.55538545]
[1770518036273,0.55980502,2094.7,2093.8,0.56134326]
[1770518036975,0.55980502,2094.7,2093.8,0.00595781]
[1770518037368,0.55980502,2094.7,2093.8,0.56134326]
[1770518045878,0.53547811,2094.6,2093.8,0.56134326]
[1770518048376,0.53547811,2094.2,2093.6,0.55808434]
[1770518048980,0.53547811,2094.2,2093.3,0.55808434]
[1770518049479,0.53547811,2094.2,2093.3,0.56380351]
[1770518051686,0.53547811,2094.1,2093.3,0.56380351]
[1770518051891,0.53976115,2094.1,2093.3,0.56380351]
[1770518056891,0.00428304,2094.1,2093.3,0.56380351]
[1770518057593,0.57781037,2094.7,2093.7,0.57015365]
[1770518057793,0.57781037,2094.5,2093.7,0.57015365]
[1770518058493,0.58342871,2094.5,2093.7,0.57015365]
[1770518058686,0.00561834,2094.5,2093.7,0.57015365]
[1770518059089,0.58342871,2094.5,2093.7,0.57015365]
[1770518061795,0.00561834,2094.5,2093.7,0.57015365]
[1770518062196,0.58342871,2094.5,2093.7,0.57015365]
[1770518062399,0.57781037,2094.1,2093.5,0.57015365]
[1770518063400,0.57781037,2094.1,2093.3,0.57587282]
[1770518063696,0.57781037,2093.8,2093.3,0.00571917]
[1770518064098,43.28006789,2093.8,2093.3,0.00571917]
[1770518064300,0.57781037,2093.6,2092.7,0.57015365]
[1770518064695,0.57781037,2093.5,2092.7,0.57015365]
[1770518064901,0.57781037,2093.4,2092.7,0.57015365]
[1770518065296,0.57781037,2093.4,2092.7,0.57615449]
[1770518065598,0.57781037,2093.4,2092.3,2.83837257]
[1770518065599,0.57781037,2093.2,2092.3,0.45983757]
[1770518066704,0.57781037,2093.2,2092.3,0.4639961]
[1770518067599,0.57781037,2093.5,2092.3,0.4639961]
[1770518069994,0.57781037,2093.7,2092.3,0.4639961]
[1770518070604,0.57781037,2093.7,2092.4,0.47083885]
[1770518071212,0.57781037,2093.7,2092.5,0.47083885]
[1770518071609,0.57781037,2093.5,2092.5,0.47083885]
[1770518073414,0.57781037,2093.7,2092.5,0.47083885]
[1770518075614,0.57781037,2093.5,2092.5,0.47083885]
[1770518082215,0.57781037,2093.5,2092.4,0.4611861]
[1770518082420,0.560061,2093.4,2092.4,0.4611861]
[1770518082825,0.560061,2093.3,2092.3,0.47015787]
[1770518083522,0.560061,2092.9,2091.9,0.47015786]
[1770518084018,0.560061,2093.1,2091.9,0.47015786]
[1770518084421,0.56562474,2093.1,2091.9,0.47431531]
[1770518084622,0.00556374,2093.1,2091.9,0.47431531]
[1770518085120,0.00556374,2093.1,2092.1,0.47267989]
[1770518085319,0.00556374,2093.1,2092.3,0.47267989]
[1770518085724,0.560061,2093.5,2092.3,0.47267989]
[1770518086626,0.56401239,2093.5,2092.3,0.47267989]
[1770518088228,0.560061,2093.3,2092.3,0.47267989]
[1770518089225,0.560061,2093.3,2092.1,0.46270943]
[1770518090230,0.560061,2093.2,2092.1,0.46270943]
[1770518092125,0.560061,2093.1,2092.1,0.46270943]
[1770518095127,0.560061,2093.0,2092.1,0.46270943]
[1770518095824,0.560061,2093.0,2092.1,4.71638496]
[1770518096018,0.560061,2093.0,2092.2,0.4542886]
[1770518098831,0.560061,2093.1,2092.2,0.4542886]
[1770518099321,0.560061,2093.0,2092.2,0.4542886]
[1770518101226,0.560061,2093.0,2092.0,4.25367553]
[1770518101227,42.70225752,2092.9,2092.0,0.44799166]
[1770518101429,42.70225752,2092.9,2091.9,0.4521491]
[1770518101430,0.560061,2092.7,2091.9,0.4521491]
[1770518101925,0.560061,2092.7,2091.9,0.00415745]
[1770518102233,0.560061,2092.3,2091.4,0.4521491]
[1770518102624,0.560061,2092.3,2091.2,1.2448981]
[1770518102625,0.560061,2092.3,2091.1,5.65169968]
[1770518102831,0.560061,2091.7,2091.0,0.03802303]
[1770518103131,0.560061,2091.5,2090.5,4.28716178]
[1770518103334,0.560061,2091.4,2090.4,0.46466762]
[1770518103730,0.560061,2091.3,2090.1,0.50763817]
[1770518103936,0.560061,2091.2,2090.1,0.50763817]
[1770518104234,0.560061,2091.1,2090.1,0.51283925]
[1770518104730,0.560061,2091.1,2090.1,0.00520108]
[1770518105129,0.560061,2091.1,2090.1,0.51427148]
[1770518105434,0.560061,2091.1,2090.1,0.00520108]
[1770518105632,0.53403717,2091.0,2090.1,0.00520108]
[1770518105832,42.70225752,2090.9,2090.1,0.51505131]
[1770518106034,0.53403717,2090.9,2090.1,0.51505131]
[1770518108132,0.00539929,2091.7,2090.1,4.80221309]
[1770518108340,0.53943646,2091.7,2090.5,0.50363954]
[1770518108638,9.29e-06,2091.7,2091.0,0.50363954]
[1770518111331,0.53403717,2092.4,2091.1,0.52463839]
[1770518112335,0.00451113,2092.4,2091.1,0.52463839]
[1770518112833,0.00451113,2092.4,2091.3,0.51144362]
[1770518113033,0.53999712,2092.4,2091.3,0.51144362]
[1770518113740,0.53999712,2092.4,2090.6,0.51144362]
[1770518113741,0.53548599,2092.2,2090.6,0.51144362]
[1770518116533,0.53548599,2092.2,2090.7,0.50694808]
[1770518117938,0.53548599,2092.0,2090.7,0.50694808]
[1770518118240,0.53548599,2092.0,2090.5,0.50694808]
[1770518118435,0.53548599,2092.0,2090.3,0.51281842]
[1770518118641,0.53548599,2091.5,2090.1,0.5180195]
[1770518119139,0.53548599,2091.4,2090.1,0.5180195]
[1770518120435,44.60878454,2091.4,2090.1,0.00520108]
[1770518120642,0.53548599,2091.1,2089.6,0.51558015]
[1770518121444,0.53548599,2091.0,2089.4,0.52078123]
[1770518121639,0.53548599,2090.9,2089.4,0.52603684]
[1770518121943,0.53548599,2090.9,2089.4,0.00525561]
[1770518121944,0.53548599,2090.8,2089.4,0.00525561]
[1770518122344,0.53548599,2090.8,2089.4,0.50815594]
[1770518123736,0.53548599,2090.8,2089.4,0.00525561]
[1770518123947,43.23774351,2090.8,2089.4,0.00525561]
[1770518124144,0.53548599,2090.7,2089.4,0.00525561]
[1770518125047,43.23774351,2090.7,2089.4,0.00525561]
[1770518125247,0.53548599,2090.6,2089.4,0.00525561]
[1770518128550,0.53548599,2090.6,2089.4,0.50946062]
[1770518130046,0.53548599,2090.8,2089.4,0.50946062]
[1770518130656,0.53548599,2091.4,2089.9,0.5251365]
[1770518131261,0.53548599,2091.4,2090.1,0.52128004]
[1770518131855,0.53921639,2091.4,2090.1,0.52128004]
[1770518132258,0.0037304,2091.4,2090.1,0.76068004]
[1770518132556,0.0037304,2091.4,2090.3,0.5252152]
[1770518133055,0.0037304,2091.4,2090.4,0.5252152]
[1770518133255,0.53548599,2091.8,2090.4,0.5252152]
[1770518133852,0.53548599,2092.0,2090.8,0.5214848]
[1770518134257,0.54025774,2092.0,2090.8,0.5214848]
[1770518137958,0.54025774,2092.0,2090.5,0.52764837]
[1770518138564,0.52894468,2091.9,2090.1,0.53163926]
[1770518139761,0.52894468,2091.8,2090.1,0.53163926]
[1770518139964,0.52894468,2091.8,2090.3,0.53163925]
[1770518146663,0.52894468,2091.8,2089.9,2.83285157]
[1770518146664,0.52894468,2091.1,2089.9,2.83285157]
[1770518146869,0.52894468,2091.1,2089.9,0.52636049]
[1770518147166,0.52894468,2091.1,2089.6,0.52636049]
[1770518149572,0.52894468,2091.1,2089.7,0.52963445]
[1770518149771,11.86109314,2091.7,2090.0,0.52963445]
[1770518149772,0.52894468,2091.3,2090.0,0.52963445]
[1770518150072,0.52894468,2091.3,2090.2,0.52963445]
[1770518150867,0.52894468,2091.5,2090.3,0.5189747]
[1770518151762,0.52894468,2091.5,2090.2,0.5189747]
[1770518151962,0.52894468,2091.4,2090.2,0.5189747]
[1770518152165,0.52894468,2091.2,2089.8,0.5189747]
[1770518153374,0.52894468,2091.1,2089.8,0.5189747]
[1770518157277,0.52894468,2091.1,2089.9,0.53294297]
[1770518158073,0.52894468,2091.1,2090.0,0.53294296]
[1770518158272,0.52894468,2091.1,2090.1,0.53294296]
[1770518160671,0.52894468,2091.1,2090.0,2.83285157]
[1770518160873,0.52894468,2090.9,2089.9,0.52420206]
[1770518161284,0.52894468,2090.9,2089.7,3.35705363]
[1770518161483,0.52894468,2090.8,2089.7,0.52420206]
[1770518161683,0.52894468,2090.7,2089.7,0.52420206]
[1770518162986,0.52894468,2090.5,2089.5,0.52774166]
[1770518163188,0.52894468,2090.3,2089.4,0.00525561]
[1770518163881,0.52894468,2090.3,2089.1,0.03299726]
[1770518164683,0.52894468,2090.3,2088.9,0.03096828]
[1770518164684,0.56496281,2090.2,2088.9,0.03096828]
[1770518164982,0.56496281,2090.2,2089.1,0.03096828]
[1770518165188,0.56496281,2090.2,2088.9,4.25433329]
[1770518165189,0.56496281,2090.1,2088.9,0.03554195]
[1770518170693,0.56496281,2090.1,2088.9,2.86839352]
[1770518170997,0.56496281,2090.1,2089.0,0.03938241]
[1770518175391,0.56496281,2090.1,2089.1,0.04246595]
[1770518175884,0.56496281,2090.1,2089.2,2.87531752]
[1770518176090,0.56496281,2090.1,2089.3,0.04246595]
[1770518177091,0.56022649,2090.4,2089.4,0.04101915]
[1770518178795,0.56122441,2090.1,2088.9,0.00457367]
[1770518178989,0.56122441,2090.1,2088.4,7.14364921]
[1770518178990,0.56122441,2089.7,2088.4,2.87187487]
[1770518179187,0.55893757,2089.6,2088.4,0.0390233]
[1770518179994,0.55893757,2089.6,2088.4,0.0443796]
[1770518180396,0.55893757,2089.6,2088.4,0.0053563]
[1770518181401,0.55546055,2089.5,2088.4,0.0053563]
[1770518181794,0.55546055,2089.5,2088.5,0.05055102]
[1770518183499,0.55724938,2089.9,2088.9,0.04697334]
[1770518183700,0.55724938,2089.9,2089.1,0.04697334]
[1770518184701,0.55291562,2090.4,2089.2,0.05564085]
[1770518185801,0.55291562,2090.4,2089.3,2.88849242]
[1770518186002,0.55291562,2090.4,2089.4,0.05564085]
[1770518186198,0.55291562,2090.4,2089.5,0.05564085]
[1770518187104,0.00411156,2090.5,2089.7,0.05493388]
[1770518187797,0.00411156,2090.5,2089.8,0.05493388]
[1770518187994,0.55738067,2090.5,2089.8,0.05493388]
[1770518188203,0.55738067,2090.5,2089.6,2.88778545]
[1770518188596,0.55738067,2090.5,2089.7,0.04898942]
[1770518189207,0.55738067,2090.5,2089.8,0.04898942]
[1770518189402,0.55738067,2090.5,2089.9,0.04898942]
[1770518189608,0.55738067,2090.5,2089.9,0.00349566]
[1770518190908,0.54985874,2090.3,2089.0,2.89460618]
[1770518191299,0.54985874,2090.3,2089.1,0.06175461]
[1770518191803,0.54985874,2090.3,2089.1,0.06712521]
[1770518194815,0.54985874,2090.3,2089.1,0.0053706]
[1770518196012,0.54985874,2090.3,2089.1,0.07166306]
[1770518196317,0.54985874,2090.3,2089.1,0.0053706]
[1770518196816,0.54985874,2090.3,2089.1,0.0733662]
[1770518197216,0.54985874,2090.3,2089.1,0.0053706]
[1770518199518,0.54985874,2090.3,2089.1,0.07027555]
[1770518203722,0.54985874,2090.3,2089.1,0.0053706]
[1770518204022,0.55475124,2090.1,2089.1,0.0053706]
[1770518205320,0.55475124,2090.0,2089.1,0.0053706]
[1770518208223,0.55475124,2090.0,2089.1,0.07343479]
[1770518209727,0.55475124,2090.0,2089.1,0.0053706]
[1770518211229,0.55475124,2089.9,2089.1,0.0053706]
[1770518211825,4.78,2089.8,2088.6,4.82266855]
[1770518212131,4.78,2089.8,2088.1,0.58125101]
[1770518212132,42.70225752,2089.1,2088.1,0.58125101]
[1770518212629,42.70225752,2089.0,2088.1,0.58125101]
[1770518212928,42.70608007,2089.0,2088.1,0.00574547]
[1770518213230,42.70608007,2089.0,2087.5,4.24975962]
[1770518213231,42.70225752,2088.7,2087.5,0.58151341]
[1770518213929,42.70225752,2088.5,2087.3,0.58151341]
[1770518214227,42.70225752,2088.6,2087.3,0.58514157]
[1770518214431,0.00903802,2088.5,2087.3,0.58514157]
[1770518215127,0.00903802,2088.4,2087.3,0.58514157]
[1770518215328,0.00903802,2088.3,2087.1,0.576732]
[1770518216218,0.00903802,2088.3,2087.1,0.58252845]
[1770518219932,0.03691311,2088.7,2087.1,0.58252845]
[1770518220630,0.05481138,2088.5,2087.1,0.58252845]
[1770518222534,0.06016728,2088.3,2087.1,0.00579645]
[1770518222734,0.06016728,2088.2,2087.1,0.00579645]
[1770518222928,0.06016728,2088.2,2087.1,0.57878991]
[1770518227133,0.09207403,2088.5,2087.1,0.57878991]
[1770518228635,0.10690242,2088.3,2087.1,0.57878991]
[1770518231831,0.12287851,2088.4,2087.1,0.57878991]
[1770518234343,0.1498554,2088.8,2087.1,0.57878991]
[1770518236141,0.14898931,2088.7,2087.1,0.57878991]
[1770518236738,0.16076218,2088.5,2087.1,0.57878991]
[1770518237639,0.16669926,2088.3,2087.1,0.57878991]
[1770518241349,0.18281713,2088.1,2087.1,0.57878991]
[1770518243146,42.88507465,2088.1,2087.1,0.57878991]
[1770518243351,0.1973706,2088.0,2087.1,0.57878991]
[1770518244448,42.91009297,2087.9,2087.1,0.57878991]
[1770518246246,42.01412462,2088.0,2087.1,0.57878991]
[1770518246446,0.61572656,2088.2,2087.2,0.58976574]
[1770518247249,0.61572656,2088.1,2087.2,0.58976574]
[1770518252251,0.61572656,2088.0,2087.2,0.58976574]
[1770518254265,0.61572656,2087.8,2087.2,0.58976574]
[1770518256963,5.69929912,2088.0,2087.2,0.58976574]
[1770518257165,6.34303136,2088.0,2087.2,0.58976574]
[1770518257669,0.64373224,2087.9,2087.2,0.58976574]
[1770518258968,0.64373224,2088.0,2087.2,0.58976574]
[1770518261570,0.64373224,2087.9,2087.2,0.58976574]
[1770518261772,0.64373224,2087.8,2087.2,0.58976574]
[1770518265875,0.64373224,2087.8,2087.1,0.00579645]
[1770518266070,5.69929912,2087.9,2086.6,0.6581945]
[1770518266071,0.64373224,2087.5,2086.6,0.6581945]
[1770518266377,0.64373224,2087.3,2086.6,0.6581945]
[1770518266579,0.64373224,2087.3,2086.5,0.6581945]
[1770518267077,0.64801647,2087.3,2086.5,0.66189358]
[1770518269075,0.00428423,2087.3,2086.5,0.66189358]
[1770518269272,0.64373224,2087.6,2086.5,0.66189358]
[1770518269579,0.64373224,2087.6,2086.6,0.6581945]
[1770518270275,0.64777277,2087.6,2086.6,0.6581945]
[1770518273289,0.64373224,2087.9,2087.1,0.6581945]
[1770518274287,0.64807714,2087.9,2087.1,0.6581945]
[1770518274488,0.0043449,2087.9,2087.1,0.6581945]
[1770518274889,0.64807714,2087.9,2087.1,0.6581945]
[1770518276288,43.30193875,2087.9,2087.1,0.6581945]
[1770518276591,0.64373224,2087.8,2087.1,0.6581945]
[1770518277187,0.64373224,2087.8,2086.9,0.6581945]
[1770518278392,0.64373224,2087.7,2086.9,0.6581945]
[1770518280698,43.29759385,2087.8,2086.9,0.6581945]
[1770518280890,0.64373224,2087.8,2086.9,0.6581945]
[1770518281092,0.64807714,2087.9,2087.0,0.6581945]
[1770518282093,0.0043449,2087.9,2087.0,0.6581945]
[1770518283699,0.64373224,2088.3,2087.4,0.6581945]
[1770518284398,42.65386161,2088.4,2087.4,0.6581945]
[1770518284598,43.29759385,2088.5,2087.4,0.6581945]
[1770518284900,43.30096996,2088.5,2087.4,0.6581945]
[1770518285294,0.00337611,2088.5,2087.6,0.6581945]
[1770518285494,42.65386161,2088.8,2087.7,0.6581945]
[1770518285694,43.29759385,2088.9,2087.8,0.70426108]
[1770518286193,0.64373224,2088.9,2087.8,0.70426108]